[Event "*** Titled Tuesday 3|2 Blitz"]
[Site "Chess.com"]
[Date "2015.07.07"]
[Round "6"]
[White "Ginger_GM"]
[Black "matein28"]
[Result "1-0"]
[WhiteElo "2397"]
[BlackElo "2170"]
[TimeControl "180+2"]
[EndTime "12:08:24 PDT"]
[Termination "Ginger_GM won by resignation"]

1. e4 {[%clk 0:03:01.9]} 1... d5 {[%clk 0:02:59.7]} 2. Nc3 {[%clk 0:03:01.3]}
2... dxe4 {[%clk 0:03:00.8]} 3. Nxe4 {[%clk 0:03:01.8]} 3... c6 {[%clk
0:03:01.7]} 4. Bc4 {[%clk 0:03:01.1]} 4... Bf5 {[%clk 0:03:01.4]} 5. Ng3 {[%clk
0:02:55.6]} 5... Bg6 {[%clk 0:03:02.1]} 6. Nf3 {[%clk 0:02:56.4]} 6... Nd7
{[%clk 0:03:02.8]} 7. h4 {[%clk 0:02:56]} 7... h6 {[%clk 0:03:03.3]} 8. Qe2
{[%clk 0:02:50.2]} 8... Ngf6 {[%clk 0:03:03.4]} 9. d4 {[%clk 0:02:48.9]} 9... e6
{[%clk 0:03:02.7]} 10. h5 {[%clk 0:02:37]} 10... Bh7 {[%clk 0:03:02.9]} 11. O-O
{[%clk 0:02:38]} 11... Be7 {[%clk 0:03:03.1]} 12. Ne5 {[%clk 0:02:32.2]} 12...
Nb6 {[%clk 0:03:02.8]} 13. Nxf7 {[%clk 0:02:28.8]} 13... Kxf7 {[%clk 0:02:59.8]}
14. Qxe6+ {[%clk 0:02:29.1]} 14... Ke8 {[%clk 0:03:01.3]} 15. Qf7+ {[%clk
0:02:27.7]} 15... Kd7 {[%clk 0:03:02.4]} 16. Be6+ {[%clk 0:02:28.1]} 1-0

[Event "*** Titled Tuesday 3|2 Blitz"]
[Site "Chess.com"]
[Date "2015.07.07"]
[Round "6"]
[White "VSERGUEI"]
[Black "Lupul_Cenusiu"]
[Result "1-0"]
[WhiteElo "2554"]
[BlackElo "2388"]
[TimeControl "180+2"]
[EndTime "12:11:01 PDT"]
[Termination "VSERGUEI won by resignation"]

1. d4 {[%clk 0:03:01.9]} 1... Nf6 {[%clk 0:03:00.3]} 2. c4 {[%clk 0:03:02.4]}
2... g6 {[%clk 0:03:01.5]} 3. Nc3 {[%clk 0:03:03.2]} 3... Bg7 {[%clk 0:03:03]}
4. e4 {[%clk 0:03:03.5]} 4... d6 {[%clk 0:03:04.2]} 5. Be2 {[%clk 0:03:04.5]}
5... O-O {[%clk 0:03:05.2]} 6. Nf3 {[%clk 0:03:05.4]} 6... Bg4 {[%clk
0:03:04.8]} 7. Be3 {[%clk 0:03:05.3]} 7... Nbd7 {[%clk 0:03:05.7]} 8. h3 {[%clk
0:02:47.1]} 8... Bxf3 {[%clk 0:03:05.7]} 9. Bxf3 {[%clk 0:02:47.5]} 9... e5
{[%clk 0:03:06.7]} 10. d5 {[%clk 0:02:48.1]} 10... Qe7 {[%clk 0:03:06.9]} 11. g4
{[%clk 0:02:45.5]} 11... Ne8 {[%clk 0:03:05.3]} 12. h4 {[%clk 0:02:44.1]} 12...
a6 {[%clk 0:02:58.1]} 13. h5 {[%clk 0:02:40.8]} 13... c6 {[%clk 0:02:55.6]} 14.
Qe2 {[%clk 0:02:32.8]} 14... Nc7 {[%clk 0:02:54.7]} 15. g5 {[%clk 0:02:24.9]}
15... c5 {[%clk 0:02:52.4]} 16. Bg4 {[%clk 0:02:19.4]} 16... Rfb8 {[%clk
0:02:49.8]} 17. Qf3 {[%clk 0:02:15]} 17... Nf8 {[%clk 0:02:46.2]} 18. a4 {[%clk
0:02:10.9]} 18... b5 {[%clk 0:02:46.5]} 19. axb5 {[%clk 0:02:11.6]} 19... axb5
{[%clk 0:02:47.4]} 20. Rxa8 {[%clk 0:02:12.3]} 20... Rxa8 {[%clk 0:02:47.6]} 21.
cxb5 {[%clk 0:02:13.2]} 21... Rb8 {[%clk 0:02:48.6]} 22. Qe2 {[%clk 0:02:06.1]}
22... Qe8 {[%clk 0:02:49.1]} 23. h6 {[%clk 0:01:59.7]} 23... Bh8 {[%clk
0:02:49.8]} 24. O-O {[%clk 0:02:00.1]} 24... Nxb5 {[%clk 0:02:47.3]} 25. Nxb5
{[%clk 0:02:00.2]} 25... Rxb5 {[%clk 0:02:48.2]} 26. Ra1 {[%clk 0:01:59.8]}
26... Qb8 {[%clk 0:02:45.6]} 27. Ra8 {[%clk 0:01:56.5]} 27... Qxa8 {[%clk
0:02:43.6]} 28. Qxb5 {[%clk 0:01:56.3]} 28... Qd8 {[%clk 0:02:41.4]} 29. b4
{[%clk 0:01:51.9]} 29... cxb4 {[%clk 0:02:39.4]} 30. Qxb4 {[%clk 0:01:52.1]}
30... f6 {[%clk 0:02:40.4]} 31. Be6+ {[%clk 0:01:51.4]} 31... Nxe6 {[%clk
0:02:40.5]} 32. dxe6 {[%clk 0:01:52]} 32... fxg5 {[%clk 0:02:41.5]} 33. Qb7
{[%clk 0:01:50.8]} 33... Bf6 {[%clk 0:02:39.7]} 34. Qf7+ {[%clk 0:01:50.2]}
34... Kh8 {[%clk 0:02:39.6]} 35. Bxg5 {[%clk 0:01:34.6]} 1-0

[Event "*** Titled Tuesday 3|2 Blitz"]
[Site "Chess.com"]
[Date "2015.07.07"]
[Round "6"]
[White "BjarkeSahl"]
[Black "AndreyOstrovskiy"]
[Result "0-1"]
[WhiteElo "2111"]
[BlackElo "2353"]
[TimeControl "180+2"]
[EndTime "12:11:40 PDT"]
[Termination "AndreyOstrovskiy won by resignation"]

1. e4 {[%clk 0:03:01.9]} 1... e5 {[%clk 0:03:00.5]} 2. Nf3 {[%clk 0:03:02.6]}
2... Nc6 {[%clk 0:03:01.6]} 3. d4 {[%clk 0:03:03.6]} 3... exd4 {[%clk
0:03:02.2]} 4. Bc4 {[%clk 0:03:05.1]} 4... Nf6 {[%clk 0:02:58.8]} 5. e5 {[%clk
0:03:05.5]} 5... d5 {[%clk 0:02:57.7]} 6. Bb5 {[%clk 0:03:06.5]} 6... Nd7 {[%clk
0:02:59.2]} 7. O-O {[%clk 0:02:55.9]} 7... Be7 {[%clk 0:02:57.4]} 8. Nxd4 {[%clk
0:02:41.3]} 8... Nxd4 {[%clk 0:02:53.5]} 9. Qxd4 {[%clk 0:02:36]} 9... c6 {[%clk
0:02:54.7]} 10. Bd3 {[%clk 0:02:28.3]} 10... Nc5 {[%clk 0:02:53.9]} 11. Be2
{[%clk 0:02:15.2]} 11... Bf5 {[%clk 0:02:53.5]} 12. c3 {[%clk 0:02:06.5]} 12...
O-O {[%clk 0:02:50.4]} 13. Kh1 {[%clk 0:02:03.2]} 13... Ne6 {[%clk 0:02:47.2]}
14. Qd1 {[%clk 0:02:03.4]} 14... f6 {[%clk 0:02:42.8]} 15. exf6 {[%clk
0:02:01.4]} 15... Rxf6 {[%clk 0:02:39.1]} 16. Nd2 {[%clk 0:01:53.7]} 16... Bd6
{[%clk 0:02:30.4]} 17. Nf3 {[%clk 0:01:50.3]} 17... Be4 {[%clk 0:02:26]} 18. Be3
{[%clk 0:01:36]} 18... Nf4 {[%clk 0:02:15.4]} 19. Bxf4 {[%clk 0:01:24]} 19...
Rxf4 {[%clk 0:02:15.9]} 20. Kg1 {[%clk 0:01:24.4]} 20... Qf6 {[%clk 0:02:03.4]}
21. Nd4 {[%clk 0:01:18.5]} 21... Rh4 {[%clk 0:01:58.8]} 22. g3 {[%clk
0:01:00.8]} 22... Rxh2 {[%clk 0:01:50.7]} 23. Kxh2 {[%clk 0:00:57.1]} 23... Qh4+
{[%clk 0:01:50.5]} 0-1

[Event "*** Titled Tuesday 3|2 Blitz"]
[Site "Chess.com"]
[Date "2015.07.07"]
[Round "6"]
[White "Tirantes"]
[Black "Tomsel"]
[Result "1-0"]
[WhiteElo "2235"]
[BlackElo "2284"]
[TimeControl "180+2"]
[EndTime "12:12:55 PDT"]
[Termination "Tirantes won on time"]

1. c4 {[%clk 0:03:01.9]} 1... Nf6 {[%clk 0:02:59.9]} 2. Nf3 {[%clk 0:03:01.3]}
2... g6 {[%clk 0:02:58.4]} 3. g3 {[%clk 0:02:59.4]} 3... Bg7 {[%clk 0:02:58.3]}
4. Bg2 {[%clk 0:02:59.5]} 4... O-O {[%clk 0:02:56.3]} 5. d4 {[%clk 0:02:59.6]}
5... d5 {[%clk 0:02:57]} 6. cxd5 {[%clk 0:02:59.6]} 6... Nxd5 {[%clk 0:02:58.9]}
7. Nc3 {[%clk 0:03:00.2]} 7... Nb6 {[%clk 0:02:58]} 8. O-O {[%clk 0:03:00.2]}
8... Nc6 {[%clk 0:02:55.3]} 9. e3 {[%clk 0:02:57.6]} 9... Bg4 {[%clk 0:02:51]}
10. h3 {[%clk 0:02:54.9]} 10... Be6 {[%clk 0:02:45.5]} 11. Ng5 {[%clk
0:02:47.7]} 11... Bd7 {[%clk 0:02:42.8]} 12. Qe2 {[%clk 0:02:43.2]} 12... Qc8
{[%clk 0:02:35.9]} 13. Kh2 {[%clk 0:02:41.3]} 13... a6 {[%clk 0:02:25.5]} 14.
Rd1 {[%clk 0:02:40.1]} 14... e5 {[%clk 0:02:26.2]} 15. d5 {[%clk 0:02:35.2]}
15... Ne7 {[%clk 0:02:26.6]} 16. b3 {[%clk 0:02:29.5]} 16... h6 {[%clk
0:02:15.7]} 17. Nge4 {[%clk 0:02:27.7]} 17... f5 {[%clk 0:01:30.1]} 18. Nc5
{[%clk 0:02:27]} 18... e4 {[%clk 0:01:30.9]} 19. Bb2 {[%clk 0:02:26.9]} 19...
Kh7 {[%clk 0:01:22.9]} 20. Rac1 {[%clk 0:02:26.5]} 20... Rd8 {[%clk 0:01:02.7]}
21. f3 {[%clk 0:02:24.8]} 21... exf3 {[%clk 0:00:55.9]} 22. Qxf3 {[%clk
0:02:25.2]} 22... Qb8 {[%clk 0:00:22.6]} 23. Ba3 {[%clk 0:02:12.1]} 23... Ng8
{[%clk 0:00:16.9]} 24. Ne2 {[%clk 0:02:07.4]} 24... Nf6 {[%clk 0:00:16.1]} 25.
Nf4 {[%clk 0:02:05.8]} 25... Re8 {[%clk 0:00:10]} 26. Nfe6 {[%clk 0:02:00.6]}
26... c6 {[%clk 0:00:06.9]} 27. Nxg7 {[%clk 0:01:53.9]} 27... Kxg7 {[%clk
0:00:08.5]} 28. Bb2 {[%clk 0:01:49.6]} 28... Qd6 {[%clk 0:00:03.5]} 29. Nxd7
{[%clk 0:01:40.9]} 1-0

[Event "*** Titled Tuesday 3|2 Blitz"]
[Site "Chess.com"]
[Date "2015.07.07"]
[Round "6"]
[White "jbj"]
[Black "Viaje"]
[Result "1-0"]
[WhiteElo "2272"]
[BlackElo "2218"]
[TimeControl "180+2"]
[EndTime "12:13:27 PDT"]
[Termination "jbj won by resignation"]

1. e4 {[%clk 0:02:24.3]} 1... c5 {[%clk 0:03:00.4]} 2. d4 {[%clk 0:02:24.9]}
2... cxd4 {[%clk 0:03:00.7]} 3. c3 {[%clk 0:02:26.3]} 3... dxc3 {[%clk
0:03:00.6]} 4. Nxc3 {[%clk 0:02:28.2]} 4... e6 {[%clk 0:03:02.1]} 5. Nf3 {[%clk
0:02:29.5]} 5... a6 {[%clk 0:03:03.6]} 6. Bc4 {[%clk 0:02:30.4]} 6... Nc6 {[%clk
0:03:05]} 7. O-O {[%clk 0:02:31.5]} 7... Nge7 {[%clk 0:03:06.3]} 8. Bg5 {[%clk
0:02:32.5]} 8... f6 {[%clk 0:03:07]} 9. Be3 {[%clk 0:02:33.5]} 9... Ng6 {[%clk
0:03:02.7]} 10. Bb3 {[%clk 0:02:32.8]} 10... Be7 {[%clk 0:03:01.7]} 11. Na4
{[%clk 0:02:30.2]} 11... Qa5 {[%clk 0:02:50.1]} 12. Nb6 {[%clk 0:02:16.3]} 12...
Rb8 {[%clk 0:02:50.4]} 13. Nd5 {[%clk 0:01:55.7]} 13... exd5 {[%clk 0:02:39.7]}
14. exd5 {[%clk 0:01:55]} 14... Nce5 {[%clk 0:02:39.8]} 15. Nxe5 {[%clk
0:01:54.7]} 15... Nxe5 {[%clk 0:02:40.1]} 16. d6 {[%clk 0:01:55.2]} 16... Bd8
{[%clk 0:02:30.7]} 17. f4 {[%clk 0:01:48.3]} 17... Bb6 {[%clk 0:02:31.3]} 18.
Bxb6 {[%clk 0:01:15.4]} 18... Qxb6+ {[%clk 0:02:33.2]} 19. Kh1 {[%clk
0:01:16.6]} 19... Nc6 {[%clk 0:02:19.2]} 20. Re1+ {[%clk 0:01:14.6]} 20... Kd8
{[%clk 0:02:20.1]} 21. Qg4 {[%clk 0:01:05.4]} 21... g6 {[%clk 0:02:03.8]} 22.
Qh4 {[%clk 0:01:00.8]} 22... Qd4 {[%clk 0:01:59.1]} 23. Rad1 {[%clk 0:00:55.7]}
23... Qxb2 {[%clk 0:01:59.6]} 24. Re5 {[%clk 0:00:42.1]} 24... Rf8 {[%clk
0:01:50.6]} 25. Qh6 {[%clk 0:00:40.1]} 25... Re8 {[%clk 0:01:37.1]} 26. Rxe8+
{[%clk 0:00:25.5]} 26... Kxe8 {[%clk 0:01:39]} 27. Re1+ {[%clk 0:00:26.7]} 27...
Ne5 {[%clk 0:01:39.1]} 28. fxe5 {[%clk 0:00:26]} 28... Qc3 {[%clk 0:01:35.3]}
29. Rd1 {[%clk 0:00:17]} 29... Qxe5 {[%clk 0:01:18.4]} 30. Qxh7 {[%clk
0:00:17.4]} 30... Kd8 {[%clk 0:01:05.7]} 31. Qh8+ {[%clk 0:00:16.3]} 1-0

[Event "*** Titled Tuesday 3|2 Blitz"]
[Site "Chess.com"]
[Date "2015.07.07"]
[Round "6"]
[White "alturas_pacificas"]
[Black "ChessWarrior7197"]
[Result "1/2-1/2"]
[WhiteElo "2083"]
[BlackElo "2317"]
[TimeControl "180+2"]
[EndTime "12:14:08 PDT"]
[Termination "Game drawn by repetition"]

1. d4 {[%clk 0:03:01.9]} 1... Nf6 {[%clk 0:03:00.4]} 2. Bf4 {[%clk 0:03:00.5]}
2... e6 {[%clk 0:03:00.2]} 3. e3 {[%clk 0:02:59.5]} 3... d5 {[%clk 0:03:00.4]}
4. Nd2 {[%clk 0:02:59.8]} 4... c5 {[%clk 0:02:58.8]} 5. c3 {[%clk 0:03:00.3]}
5... Nc6 {[%clk 0:02:57.8]} 6. Ngf3 {[%clk 0:03:00.4]} 6... Be7 {[%clk
0:02:58.6]} 7. Bd3 {[%clk 0:03:00.9]} 7... O-O {[%clk 0:02:59]} 8. Ne5 {[%clk
0:03:02.3]} 8... Nxe5 {[%clk 0:02:52.1]} 9. dxe5 {[%clk 0:03:02.7]} 9... Nd7
{[%clk 0:02:50.7]} 10. Qh5 {[%clk 0:02:57.3]} 10... g6 {[%clk 0:02:50.6]} 11.
Qf3 {[%clk 0:02:53.7]} 11... Re8 {[%clk 0:02:48.1]} 12. h4 {[%clk 0:02:52.6]}
12... Bf8 {[%clk 0:02:32.6]} 13. h5 {[%clk 0:02:50.6]} 13... Bg7 {[%clk
0:02:33.5]} 14. hxg6 {[%clk 0:02:50.3]} 14... hxg6 {[%clk 0:02:33.9]} 15. Qg3
{[%clk 0:02:47.2]} 15... Qb6 {[%clk 0:02:17.7]} 16. O-O-O {[%clk 0:02:44]} 16...
a5 {[%clk 0:02:00.3]} 17. Nf3 {[%clk 0:02:41.4]} 17... a4 {[%clk 0:01:59.8]} 18.
Bxg6 {[%clk 0:02:23.8]} 18... a3 {[%clk 0:01:51.6]} 19. b3 {[%clk 0:02:17.3]}
19... Qa5 {[%clk 0:01:39.9]} 20. Bc2 {[%clk 0:01:34.6]} 20... Nf8 {[%clk
0:01:21.6]} 21. Bh6 {[%clk 0:01:30.8]} 21... Ng6 {[%clk 0:01:21.3]} 22. Bxg7
{[%clk 0:01:12.1]} 22... Kxg7 {[%clk 0:01:21.3]} 23. Qg5 {[%clk 0:01:09.9]}
23... Qxc3 {[%clk 0:01:16.9]} 24. Qf6+ {[%clk 0:01:10.5]} 24... Kg8 {[%clk
0:01:16.2]} 25. Rh6 {[%clk 0:00:37.9]} 25... d4 {[%clk 0:01:14.2]} 26. Rxg6+
{[%clk 0:00:36.2]} 26... fxg6 {[%clk 0:01:14.4]} 27. Qxg6+ {[%clk 0:00:36.1]}
27... Kf8 {[%clk 0:01:15]} 28. Qf6+ {[%clk 0:00:36.2]} 28... Kg8 {[%clk
0:01:16]} 29. Rh1 {[%clk 0:00:29.5]} 29... Qa1+ {[%clk 0:01:12.9]} 30. Bb1
{[%clk 0:00:27.5]} 30... Qb2+ {[%clk 0:01:13.9]} 31. Kd1 {[%clk 0:00:26.5]}
31... Qxb1+ {[%clk 0:01:15.1]} 32. Ke2 {[%clk 0:00:26.7]} 32... Qxh1 {[%clk
0:01:12.3]} 33. Qg6+ {[%clk 0:00:26.8]} 33... Kf8 {[%clk 0:01:06.1]} 34. Qf6+
{[%clk 0:00:24.5]} 34... Kg8 {[%clk 0:01:07]} 35. Qg6+ {[%clk 0:00:26]} 35...
Kf8 {[%clk 0:01:07.6]} 36. Qf6+ {[%clk 0:00:21.9]} 36... Kg8 {[%clk 0:01:08.3]}
37. Qg6+ {[%clk 0:00:21.9]} 37... Kf8 {[%clk 0:01:08.4]} 38. Qf6+ {[%clk
0:00:19.2]} 38... Kg8 {[%clk 0:01:09.3]} 1/2-1/2

[Event "*** Titled Tuesday 3|2 Blitz"]
[Site "Chess.com"]
[Date "2015.07.07"]
[Round "6"]
[White "stepanosinovsky"]
[Black "Cruel_Yaro"]
[Result "0-1"]
[WhiteElo "2292"]
[BlackElo "2488"]
[TimeControl "180+2"]
[EndTime "12:14:52 PDT"]
[Termination "Cruel_Yaro won on time"]

1. g3 {[%clk 0:03:01.9]} 1... f5 {[%clk 0:02:59.8]} 2. Bg2 {[%clk 0:03:03.8]}
2... Nf6 {[%clk 0:03:01.3]} 3. d3 {[%clk 0:03:03.3]} 3... g6 {[%clk 0:03:02.7]}
4. Nd2 {[%clk 0:03:04.3]} 4... Bg7 {[%clk 0:03:02.9]} 5. e4 {[%clk 0:03:05.3]}
5... fxe4 {[%clk 0:03:03.1]} 6. dxe4 {[%clk 0:03:05.5]} 6... d6 {[%clk
0:03:03.8]} 7. Ngf3 {[%clk 0:03:05.9]} 7... e5 {[%clk 0:03:04]} 8. O-O {[%clk
0:03:07]} 8... O-O {[%clk 0:03:05.3]} 9. c3 {[%clk 0:03:08]} 9... Nc6 {[%clk
0:03:01.7]} 10. Qe2 {[%clk 0:03:08.9]} 10... h6 {[%clk 0:02:52.1]} 11. h3 {[%clk
0:02:59.7]} 11... Be6 {[%clk 0:02:50.1]} 12. a4 {[%clk 0:03:00]} 12... g5 {[%clk
0:02:49.7]} 13. Nc4 {[%clk 0:02:53.4]} 13... Qd7 {[%clk 0:02:49.4]} 14. Kh2
{[%clk 0:02:34.2]} 14... g4 {[%clk 0:02:41.3]} 15. Ng1 {[%clk 0:02:33]} 15...
gxh3 {[%clk 0:02:35.2]} 16. Bxh3 {[%clk 0:02:33.8]} 16... Ng4+ {[%clk
0:02:34.9]} 17. Kg2 {[%clk 0:02:31.7]} 17... d5 {[%clk 0:02:31.7]} 18. Ne3
{[%clk 0:02:14]} 18... Nxe3+ {[%clk 0:02:24.3]} 19. Bxe3 {[%clk 0:02:14]} 19...
Bxh3+ {[%clk 0:02:06.9]} 20. Nxh3 {[%clk 0:02:14.6]} 20... d4 {[%clk 0:02:07.6]}
21. Bd2 {[%clk 0:02:10.6]} 21... d3 {[%clk 0:02:06.3]} 22. Qh5 {[%clk
0:02:05.2]} 22... Qf7 {[%clk 0:02:01.6]} 23. Qxf7+ {[%clk 0:01:53.8]} 23... Rxf7
{[%clk 0:02:01.4]} 24. a5 {[%clk 0:01:35.9]} 24... Rd8 {[%clk 0:01:48.2]} 25. f4
{[%clk 0:01:27.6]} 25... b6 {[%clk 0:01:39.7]} 26. axb6 {[%clk 0:01:24.7]} 26...
cxb6 {[%clk 0:01:38.1]} 27. f5 {[%clk 0:01:05.6]} 27... Na5 {[%clk 0:01:38.1]}
28. g4 {[%clk 0:00:58.4]} 28... Nc4 {[%clk 0:01:37.7]} 29. Rf2 {[%clk
0:00:52.2]} 29... Bf8 {[%clk 0:01:36.6]} 30. b3 {[%clk 0:00:49.2]} 30... Nxd2
{[%clk 0:01:32.5]} 31. Rxd2 {[%clk 0:00:50.3]} 31... Rc7 {[%clk 0:01:34]} 32. c4
{[%clk 0:00:46.7]} 32... Bb4 {[%clk 0:01:34.7]} 33. Rdd1 {[%clk 0:00:45.8]}
33... b5 {[%clk 0:01:35.5]} 34. Nf2 {[%clk 0:00:42.5]} 34... bxc4 {[%clk
0:01:34.9]} 35. bxc4 {[%clk 0:00:42.4]} 35... d2 {[%clk 0:01:36]} 36. Ra6 {[%clk
0:00:31]} 36... Rxc4 {[%clk 0:01:22.4]} 37. Rxa7 {[%clk 0:00:06.5]} 37... Rc1
{[%clk 0:01:06.2]} 38. Ra6 {[%clk 0:00:04.8]} 38... Bc5 {[%clk 0:01:04.8]} 0-1

[Event "*** Titled Tuesday 3|2 Blitz"]
[Site "Chess.com"]
[Date "2015.07.07"]
[Round "6"]
[White "LuckyTiger"]
[Black "pedromartinez91"]
[Result "1-0"]
[WhiteElo "2444"]
[BlackElo "2164"]
[TimeControl "180+2"]
[EndTime "12:15:01 PDT"]
[Termination "LuckyTiger won by resignation"]

1. e4 {[%clk 0:02:59.3]} 1... c5 {[%clk 0:02:57.7]} 2. c3 {[%clk 0:02:54]} 2...
Nf6 {[%clk 0:02:57.7]} 3. e5 {[%clk 0:02:36.1]} 3... Nd5 {[%clk 0:02:57.5]} 4.
Nf3 {[%clk 0:02:37.7]} 4... Nc6 {[%clk 0:02:57.7]} 5. d4 {[%clk 0:02:39.1]} 5...
cxd4 {[%clk 0:02:58.4]} 6. Bc4 {[%clk 0:02:40.3]} 6... Nb6 {[%clk 0:02:58.5]} 7.
Bb3 {[%clk 0:02:41.4]} 7... d5 {[%clk 0:02:59.2]} 8. exd6 {[%clk 0:02:42.9]}
8... Qxd6 {[%clk 0:02:58.4]} 9. O-O {[%clk 0:02:44.5]} 9... Be6 {[%clk
0:02:56.6]} 10. Na3 {[%clk 0:02:44.2]} 10... Bxb3 {[%clk 0:02:56.9]} 11. axb3
{[%clk 0:02:42.5]} 11... a6 {[%clk 0:02:40.9]} 12. Re1 {[%clk 0:02:32.1]} 12...
e6 {[%clk 0:02:41.3]} 13. cxd4 {[%clk 0:02:25.2]} 13... Be7 {[%clk 0:02:30.8]}
14. Nc4 {[%clk 0:02:26.1]} 14... Qd8 {[%clk 0:02:31]} 15. Nfe5 {[%clk
0:02:06.3]} 15... O-O {[%clk 0:02:28.8]} 16. Nxb6 {[%clk 0:02:05.1]} 16... Qxb6
{[%clk 0:02:26.9]} 17. Nd7 {[%clk 0:02:05.9]} 17... Qxd4 {[%clk 0:02:27.8]} 18.
Nxf8 {[%clk 0:02:07]} 18... Rxf8 {[%clk 0:02:27.8]} 19. Be3 {[%clk 0:01:55.7]}
19... Qxb2 {[%clk 0:02:25.6]} 20. Qd7 {[%clk 0:01:57.3]} 20... Qxb3 {[%clk
0:02:03]} 21. Rab1 {[%clk 0:01:58.3]} 21... Qd5 {[%clk 0:02:03.5]} 22. Qxd5
{[%clk 0:01:59.6]} 22... exd5 {[%clk 0:02:04.2]} 23. Rxb7 {[%clk 0:02:01.5]}
23... d4 {[%clk 0:02:00.7]} 24. Bxd4 {[%clk 0:01:59.6]} 24... Bb4 {[%clk
0:01:44.6]} 25. Rb1 {[%clk 0:01:20.7]} 25... a5 {[%clk 0:01:29]} 26. Be3 {[%clk
0:01:21.3]} 26... h6 {[%clk 0:01:25.1]} 27. Rd1 {[%clk 0:01:17.6]} 27... Nd8
{[%clk 0:01:18.3]} 28. Ra7 {[%clk 0:01:16]} 28... Ne6 {[%clk 0:01:18.5]} 29. Bb6
{[%clk 0:01:15]} 29... Rb8 {[%clk 0:01:12.2]} 30. Bxa5 {[%clk 0:01:13.6]} 30...
Bxa5 {[%clk 0:01:13.1]} 31. Rxa5 {[%clk 0:01:14.6]} 31... Rb7 {[%clk 0:01:14.6]}
32. Rad5 {[%clk 0:01:14]} 32... Rb2 {[%clk 0:01:07.1]} 33. R5d2 {[%clk 0:01:14]}
33... Rb5 {[%clk 0:01:05.9]} 34. h4 {[%clk 0:01:14]} 34... Kh7 {[%clk
0:01:05.4]} 35. g3 {[%clk 0:01:13.7]} 35... h5 {[%clk 0:01:04.3]} 36. Kg2 {[%clk
0:01:15]} 36... Kg6 {[%clk 0:01:04.9]} 37. Rd5 {[%clk 0:01:00.8]} 37... Rb2
{[%clk 0:01:03.1]} 38. R1d2 {[%clk 0:01:01.7]} 38... Rb1 {[%clk 0:01:04.1]} 39.
Ra2 {[%clk 0:01:00.3]} 39... Rb8 {[%clk 0:00:45.6]} 40. Raa5 {[%clk 0:00:59.8]}
40... Rh8 {[%clk 0:00:46.3]} 41. f4 {[%clk 0:00:53.4]} 41... Kf6 {[%clk
0:00:45.1]} 42. Rxh5 {[%clk 0:00:48.3]} 42... Rc8 {[%clk 0:00:40.4]} 43. Rhf5+
{[%clk 0:00:49.2]} 43... Kg6 {[%clk 0:00:40.1]} 44. Rfd5 {[%clk 0:00:50.4]}
44... Rc2+ {[%clk 0:00:39.8]} 45. Kf3 {[%clk 0:00:51.5]} 45... f5 {[%clk
0:00:36.4]} 46. Ra6 {[%clk 0:00:50.1]} 46... Kf6 {[%clk 0:00:36.8]} 47. Rdd6
{[%clk 0:00:50.5]} 47... Rc3+ {[%clk 0:00:37.6]} 48. Kf2 {[%clk 0:00:50.4]}
48... Rc2+ {[%clk 0:00:37]} 49. Ke1 {[%clk 0:00:51.8]} 1-0

[Event "*** Titled Tuesday 3|2 Blitz"]
[Site "Chess.com"]
[Date "2015.07.07"]
[Round "6"]
[White "GMHess"]
[Black "lexiel"]
[Result "0-1"]
[WhiteElo "2530"]
[BlackElo "2239"]
[TimeControl "180+2"]
[EndTime "12:15:26 PDT"]
[Termination "lexiel won by resignation"]

1. b3 {[%clk 0:03:01.9]} 1... a5 {[%clk 0:02:58.4]} 2. Bb2 {[%clk 0:03:02.8]}
2... a4 {[%clk 0:02:59.8]} 3. Nf3 {[%clk 0:03:04.5]} 3... e6 {[%clk 0:03:01.2]}
4. e3 {[%clk 0:03:05.3]} 4... Nf6 {[%clk 0:03:00.5]} 5. c4 {[%clk 0:03:06.6]}
5... b6 {[%clk 0:03:00.9]} 6. bxa4 {[%clk 0:03:04]} 6... Bb7 {[%clk 0:03:01.8]}
7. Be2 {[%clk 0:03:01]} 7... Be7 {[%clk 0:03:02.1]} 8. O-O {[%clk 0:03:02.1]}
8... O-O {[%clk 0:03:03.7]} 9. Nc3 {[%clk 0:03:01]} 9... Ne4 {[%clk 0:03:02.1]}
10. Nxe4 {[%clk 0:02:41.6]} 10... Bxe4 {[%clk 0:03:01.9]} 11. Nd4 {[%clk
0:02:39.5]} 11... Bb7 {[%clk 0:02:59.1]} 12. Bc3 {[%clk 0:02:35.1]} 12... Nc6
{[%clk 0:02:51.8]} 13. Nxc6 {[%clk 0:02:23.4]} 13... Bxc6 {[%clk 0:02:52]} 14.
a5 {[%clk 0:02:24.5]} 14... bxa5 {[%clk 0:02:53.9]} 15. Rb1 {[%clk 0:02:21]}
15... Bb4 {[%clk 0:02:42.3]} 16. Ba1 {[%clk 0:02:08.6]} 16... Qg5 {[%clk
0:02:39.5]} 17. f3 {[%clk 0:02:01]} 17... Rab8 {[%clk 0:02:30.6]} 18. Qc2 {[%clk
0:01:57.7]} 18... h5 {[%clk 0:02:22.9]} 19. Rf2 {[%clk 0:01:29.5]} 19... h4
{[%clk 0:02:21.4]} 20. f4 {[%clk 0:01:29]} 20... Qh6 {[%clk 0:02:17.3]} 21. Bf3
{[%clk 0:01:09.4]} 21... Bxf3 {[%clk 0:02:15]} 22. Rxf3 {[%clk 0:01:11.3]} 22...
Qh5 {[%clk 0:01:55.1]} 23. Rbf1 {[%clk 0:01:03.4]} 23... f5 {[%clk 0:01:44]} 24.
Rh3 {[%clk 0:00:49.7]} 24... Qg4 {[%clk 0:01:29.5]} 25. Rff3 {[%clk 0:00:38.8]}
25... Rf7 {[%clk 0:01:30.6]} 26. Qb1 {[%clk 0:00:25.3]} 26... c6 {[%clk
0:01:29.8]} 27. Qe1 {[%clk 0:00:14.5]} 27... Be7 {[%clk 0:01:30.4]} 28. Bc3
{[%clk 0:00:15.5]} 28... a4 {[%clk 0:01:31.1]} 29. Rf1 {[%clk 0:00:15.5]} 29...
a3 {[%clk 0:01:31.1]} 30. Qd1 {[%clk 0:00:12.6]} 30... Rff8 {[%clk 0:01:16.8]}
31. Qa4 {[%clk 0:00:08.2]} 31... Qe2 {[%clk 0:01:12.4]} 32. Qa7 {[%clk
0:00:06.5]} 32... Qd3 {[%clk 0:01:05.2]} 33. e4 {[%clk 0:00:07.1]} 33... Qxe4
{[%clk 0:00:59.3]} 34. Qxd7 {[%clk 0:00:08]} 34... Bc5+ {[%clk 0:00:54.4]} 35.
Kh1 {[%clk 0:00:06.2]} 35... Rf7 {[%clk 0:00:54.6]} 36. Qd3 {[%clk 0:00:05]}
36... Rfb7 {[%clk 0:00:54.1]} 37. Qxe4 {[%clk 0:00:04.3]} 37... fxe4 {[%clk
0:00:55.8]} 38. g3 {[%clk 0:00:05.7]} 38... Rb1 {[%clk 0:00:55.4]} 39. Kg2
{[%clk 0:00:07]} 39... Rxf1 {[%clk 0:00:56.3]} 40. Kxf1 {[%clk 0:00:08.9]} 40...
Rb2 {[%clk 0:00:56]} 41. Rxh4 {[%clk 0:00:08.2]} 41... Rxa2 {[%clk 0:00:57.2]}
42. Rg4 {[%clk 0:00:09.8]} 42... Bf8 {[%clk 0:00:58.7]} 43. Ke2 {[%clk
0:00:08.8]} 43... Rc2 {[%clk 0:00:59.3]} 44. Rg5 {[%clk 0:00:09.3]} 44... c5
{[%clk 0:00:57.4]} 45. Be5 {[%clk 0:00:06.7]} 45... a2 {[%clk 0:00:57.7]} 46. f5
{[%clk 0:00:08.3]} 46... exf5 {[%clk 0:00:49.1]} 47. Rxf5 {[%clk 0:00:10.2]}
47... Rc1 {[%clk 0:00:50.6]} 48. Rf4 {[%clk 0:00:07]} 48... Bd6 {[%clk
0:00:46.4]} 49. Bxd6 {[%clk 0:00:03.4]} 0-1